{"text_format":"1","workbook":"xlsx","n_sheets":6,"sheets":["COMPLETA","SI HA OCURRIDO (HISTORICO)","ZNVT","Hoja3","MATRIZ DE PRIORIZACIÓN ","GENERAL"],"not_rendered":{"charts":0,"images":2,"macros":1,"external_links":0,"defined_names":4,"comments":0,"pivot_tables":0},"unopened":[],"bounds":{"document_bytes":16777216,"sheet_cells":100000,"rows_first":2000,"rows_last":500,"rows_between":2000,"halvings":0,"cell_chars":16384,"cell_head_chars":4096},"cells_cut":0,"cells_raw":0,"read":"whole","date_system":"1900"}

{"sheet":"COMPLETA","index":0,"n_rows":6,"n_cols":24,"rows_kept":6,"cut":false,"hidden":true,"merged":[[3,0,4,1],[0,0,0,14],[1,0,2,3],[0,15,0,23],[1,4,2,14],[1,15,4,17],[1,18,4,19],[1,20,4,23],[3,4,4,6],[3,7,3,11],[3,12,3,14],[4,7,4,8],[4,9,4,11],[4,12,4,14],[3,2,4,3]]}
["AMENAZA (50)",null,null,null,null,null,null,null,null,null,null,null,null,null,null,"VULNERABILIDAD"]
["Probabilidad ",null,null,null,"Ocurrencia",null,null,null,null,null,null,null,null,null,null,"Nivel de preparacion institucional",null,null,"Efectividad control",null,"Percepción de la comunidad"]
[]
["Si ha ocurrido antes (histórico)",null,"No ha ocurrido (proyectado)",null,"Impacto humano",null,null,"Impacto sobre el SGSS",null,null,null,null,"Impacto social"]
[null,null,null,null,null,null,null,"Carga economica",null,"Afectacion capacidad de respuesta",null,null,"Afectacion del desempeño"]
["Porcentaje de población afectada (35)","Severidad de las consecuencias (15)","Otros países","Otras enfermedades similares","Morbilidad","Muertes por evento","Necesidad de atencion en nivel superior de complejidad","Costo atencion medica","Costo incapacidad","Afectacion de la infraestructura","Afectacion del talento humano","Sobreutilización de los servicios","Escolar","Laboral","Familiar","Planificacion","Operaciones","logistica y recursos","Prevencion ","Tratamiento","Amenaza percibida","Efectividad percibida","Estigmatización","Subvaloración de impactos"]

{"sheet":"SI HA OCURRIDO (HISTORICO)","index":1,"n_rows":6,"n_cols":11,"rows_kept":6,"cut":false,"hidden":true,"merged":[[1,5,4,6],[1,2,4,4],[1,7,4,10],[0,2,0,10],[3,0,4,1],[0,0,0,1],[1,0,2,1]]}
["AMENAZA (50)",null,"VULNERABILIDAD (50)"]
["Probabilidad ",null,"Nivel de preparacion institucional",null,null,"Efectividad control",null,"Percepción de la comunidad"]
[]
["Si ha ocurrido antes (histórico)"]
[]
["Porcentaje de población afectada (35)","Severidad de las consecuencias (15)","Planificación","Operaciones","logistica y recursos","Prevención ","Tratamiento","Amenaza percibida","Efectividad percibida","Estigmatización","Subvaloracion de impactos"]

{"sheet":"ZNVT","index":2,"n_rows":22,"n_cols":23,"rows_kept":22,"cut":false,"hidden":true,"merged":[[1,18,1,21],[4,8,5,9],[6,9,7,9],[5,4,5,5],[5,6,5,7],[4,4,4,7],[2,10,5,15],[6,21,7,21],[6,14,6,15],[2,0,3,9],[0,0,0,22],[6,10,6,11],[6,12,6,13],[6,17,7,17],[1,0,1,9],[1,10,1,17],[6,22,7,22],[1,22,5,22],[6,3,7,3],[6,19,7,19],[6,7,7,7],[6,1,7,1],[6,5,7,5],[4,0,5,3],[2,16,5,17],[2,18,5,21]]}
["MATRIZ DE PRIORIZACIÓN PARA EVENTOS DE INTERES EN SALUD PÚBLICA"]
["AMENAZA (50)",null,null,null,null,null,null,null,null,null,"VULNERABILIDAD (30)",null,null,null,null,null,null,null,"PERCEPCIÓN DEL RIESGO (20)",null,null,null,"Riesgo "]
["Ocurrencia",null,null,null,null,null,null,null,null,null,"Nivel de preparación institucional (20)",null,null,null,null,null,"Efectividad y control (10)",null,"Percepción de la comunidad (20)"]
[]
["Impacto humano (30)",null,null,null,"Impacto sobre el SGSS (15)",null,null,null,"Impacto social (5)"]
[null,null,null,null,"Carga económica (5)",null,"Afectación capacidad de respuesta (10)"]
[null,"Morbilidad (15)",null,"Muertes por evento (15)",null,"Costo atención medica (5)",null,"Sobreutilización de los servicios (10)",null,"Convivencia (5)","ESE (6)",null,"Coordinación de la respuesta (8)",null,"Ejecución de la respuesta (6)",null,null,"Tratamiento y control (10)",null,"Conocimiento (15)",null,"Aceptabilidad (5)","Total "]
[null,null,null,null,null,null,null,null,null,null,null,"Planes de acción para emergencias (6)",null,"Sectorial (8)",null,"Logística y recursos (6)"]
[15,null,15,null,null,null,null,null,null,null,null,null,null,null,null,null,null,null,null,null,null,null,{"$f":"SUM($R9,#REF!,$P9,#REF!,#REF!,$N9,#REF!,$L9,#REF!,#REF!,#REF!,$H9,#REF!,#REF!,#REF!,$F9,#REF!,$D9,$B9+T9+V9+#REF!)","v":{"$error":"#REF!"}}]
[10,null,10,null,null,null,null,null,null,null,null,null,null,null,null,null,null,null,null,null,null,null,{"$f":"SUM($R10,#REF!,$P10,#REF!,#REF!,$N10,#REF!,$L10,#REF!,#REF!,#REF!,$H10,#REF!,#REF!,#REF!,$F10,#REF!,$D10,$B10+T10+V10+#REF!)","v":{"$error":"#REF!"}}]
[5,null,5,null,null,null,null,null,null,null,null,null,null,null,null,null,null,null,null,null,null,null,{"$f":"SUM($R11,#REF!,$P11,#REF!,#REF!,$N11,#REF!,$L11,#REF!,#REF!,#REF!,$H11,#REF!,#REF!,#REF!,$F11,#REF!,$D11,$B11+T11+V11+#REF!)","v":{"$error":"#REF!"}}]
[1,null,1,null,null,null,null,null,null,null,null,null,null,null,null,null,null,null,null,null,null,null,{"$f":"SUM($R12,#REF!,$P12,#REF!,#REF!,$N12,#REF!,$L12,#REF!,#REF!,#REF!,$H12,#REF!,#REF!,#REF!,$F12,#REF!,$D12,$B12+T12+V12+#REF!)","v":{"$error":"#REF!"}}]
[null,null,null,null,null,null,null,null,null,null,null,null,null,null,null,null,null,null,null,null,null,null,{"$f":"SUM($R13,#REF!,$P13,#REF!,#REF!,$N13,#REF!,$L13,#REF!,#REF!,#REF!,$H13,#REF!,#REF!,#REF!,$F13,#REF!,$D13,$B13+T13+V13+#REF!)","v":{"$error":"#REF!"}}]
[null,null,null,null,null,null,null,null,null,null,null,null,null,null,null,null,null,null,null,null,null,null,{"$f":"SUM($R14,#REF!,$P14,#REF!,#REF!,$N14,#REF!,$L14,#REF!,#REF!,#REF!,$H14,#REF!,#REF!,#REF!,$F14,#REF!,$D14,$B14+T14+V14+#REF!)","v":{"$error":"#REF!"}}]
[null,null,null,null,null,null,null,null,null,null,null,null,null,null,null,null,null,null,null,null,null,null,{"$f":"SUM($R15,#REF!,$P15,#REF!,#REF!,$N15,#REF!,$L15,#REF!,#REF!,#REF!,$H15,#REF!,#REF!,#REF!,$F15,#REF!,$D15,$B15+T15+V15+#REF!)","v":{"$error":"#REF!"}}]
[null,null,null,null,null,null,null,null,null,null,null,null,null,null,null,null,null,null,null,null,null,null,{"$f":"SUM($R16,#REF!,$P16,#REF!,#REF!,$N16,#REF!,$L16,#REF!,#REF!,#REF!,$H16,#REF!,#REF!,#REF!,$F16,#REF!,$D16,$B16+T16+V16+#REF!)","v":{"$error":"#REF!"}}]
[null,null,null,null,null,null,null,null,null,null,null,null,null,null,null,null,null,null,null,null,null,null,{"$f":"SUM($R17,#REF!,$P17,#REF!,#REF!,$N17,#REF!,$L17,#REF!,#REF!,#REF!,$H17,#REF!,#REF!,#REF!,$F17,#REF!,$D17,$B17+T17+V17+#REF!)","v":{"$error":"#REF!"}}]
[null,null,null,null,null,null,null,null,null,null,null,null,null,null,null,null,null,null,null,null,null,null,{"$f":"SUM($R18,#REF!,$P18,#REF!,#REF!,$N18,#REF!,$L18,#REF!,#REF!,#REF!,$H18,#REF!,#REF!,#REF!,$F18,#REF!,$D18,$B18+T18+V18+#REF!)","v":{"$error":"#REF!"}}]
[null,"15 puntos.\nPor encima del nivel de referencia en mas del 25%",null,"15 puntos.\nPor encima del nivel de referencia en mas del 25%",null,"1  punto.\nEl costo de la atención no supera el promedio de la UPC nacional y el numero de casos esta por debajo de la proporción nacional de morbilidad. ",null,"1 punto. \nCapacidad habitual ",null,"1 punto. \nEl evento no genera afectación de la convivencia. ",null,"1 punto.\nCon planes de preparación institucional",null,"1 punto.\nEquipo sectorial responsable de la coordinación",null,"1 punto.\n Con logística y con recursos disponibles fisicos y humanos",null,"1 punto. \nTratamiento disponibles y suficiente. ",null,"1 punto.\nConocimiento sobre el evento y sus efectos",null,"1 punto.\nAceptabilidad al riesgo"]
[null,"10 puntos.\nPor encima del nivel de referencia hasta un 25% ",null,"10 puntos.\nPor encima del nivel de referencia hasta un 25% ",null,"3 puntos.\nEl costo de la atención supera el promedio de UPC o el numero de casos supera la proporción nacional de morbilidad. ",null,"5 puntos.\nIgual a la capacidad máxima",null,"2 puntos.\nEl evento genera alteración de la convivencia, sin muerte.",null,"6 puntos.\nSin planes de preparación institucional",null,"4 puntos. \nUn líder responsable de la coordinación sectorial",null,"6 puntos.\nNo se cuenta con logística y/o con recursos fisicos y humanos",null,"10 puntos.\n Tratamiento no disponible o no suficiente. ",null,"5 puntos.\nConocimiento sobre el evento pero no sobre sus efectos",null,"5 puntos.\nNo aceptabilidad al riesgo"]
[null,"5 puntos.\nIgual al nivel de referencia o por debajo hasta el 25 %",null,"5 puntos.\nIgual al nivel de referencia o por debajo hasta el 25 %",null,"5 puntos.\nEl costo de la atención sobrepase la UPC promedio nacional y el numero de casos de la proporción nacional de morbilidad.",null,"10 puntos.\nSupero la capacidad máxima Y/O MAS DEL 50% DEAFECTACIÓN A PERSONAL DE SALUD",null,"5 puntos.\nMuerte (homicidio, suicidio) por afectación de la convivencia.  ",null,null,null,"8 puntos.\nSin coordinación",null,null,null,null,null,"15 puntos.\nNingún conocimiento sobre el evento y sus efectos"]
[null,"1 punto.\nPor debajo del nivel de referencia en mas del 25%",null,"1 punto.\nPor debajo del nivel de referencia en mas del 25%"]

{"sheet":"Hoja3","index":3,"n_rows":21,"n_cols":18,"rows_kept":21,"cut":false,"hidden":true,"merged":[[2,10,2,11],[1,12,4,12],[3,9,4,9],[2,6,2,9],[1,6,1,11],[0,0,0,12],[1,0,4,0],[1,1,1,5],[3,1,3,2],[3,5,4,5],[3,3,3,4],[3,6,4,6],[3,7,4,7],[3,8,4,8],[2,1,2,5],[3,10,4,10],[3,11,4,11]]}
["MATRIZ DE PRIORIZACIÓN PARA EVENTOS DE INTERES EN SALUD PÚBLICA"]
["Evento","AMENAZA (50)",null,null,null,null,"VULNERABILIDAD (50)",null,null,null,null,null,"Riesgo "]
[null,"Ocurrencia (50)",null,null,null,null,"vulnerabilidad institucional (30)",null,null,null,"vulnerabilidad poblacional (20)"]
[null,"Impacto humano (30)",null,"Impacto sobre el SGSS (15)",null,"Impacto social (5)","Planes de acción para emergencias (6)","Coordinación de la respuesta (8)","Logística y recursos (6)","Tratamiento y control (10)","Conocimiento (15)","Aceptabilidad (5)"]
[null,"Morbilidad (15)","Muertes por evento (15)","Carga económica (5)","Afectación capacidad de respuesta (10)",null,null,null,null,null,null,null,null,null,"Amenaza percibida","Efectividad percibida","Estigmatización","Subvaloracion de impactos"]
[]
[]
[]
[]
[]
[]
[]
[]
[]
[]
[]
[]
[null,"15 puntos.\nPor encima del nivel de referencia en mas del 25%","15 puntos.\nPor encima del nivel de referencia en mas del 25%","1  punto.\nEl costo de la atención no supera el promedio de la UPC nacional y el numero de casos esta por debajo de la proporción nacional de morbilidad. ","1 punto. \nCapacidad habitual ","1 punto. \nEl evento no genera afectación de la convivencia. ","1 punto.\nCon planes de preparación institucional","1 punto.\nEquipo sectorial responsable de la coordinación","1 punto.\n Con logística y con recursos disponibles fisicos y humanos","1 punto. \nTratamiento disponibles y suficiente. ","1 punto.\nConocimiento sobre el evento y sus efectos","1 punto.\nAceptabilidad al riesgo"]
[null,"10 puntos.\nPor encima del nivel de referencia hasta un 25% ","10 puntos.\nPor encima del nivel de referencia hasta un 25% ","3 puntos.\nEl costo de la atención supera el promedio de UPC o el numero de casos supera la proporción nacional de morbilidad. ","5 puntos.\nIgual a la capacidad máxima","2 puntos.\nEl evento genera alteración de la convivencia, sin muerte.","6 puntos.\nSin planes de preparación institucional","4 puntos. \nUn líder responsable de la coordinación sectorial","6 puntos.\nNo se cuenta con logística y/o con recursos fisicos y humanos","10 puntos.\n Tratamiento no disponible o no suficiente. ","5 puntos.\nConocimiento sobre el evento pero no sobre sus efectos","5 puntos.\nNo aceptabilidad al riesgo"]
[null,"5 puntos.\nIgual al nivel de referencia o por debajo hasta el 25 %","5 puntos.\nIgual al nivel de referencia o por debajo hasta el 25 %","5 puntos.\nEl costo de la atención sobrepase la UPC promedio nacional y el numero de casos de la proporción nacional de morbilidad.","10 puntos.\nSupero la capacidad máxima Y/O MAS DEL 50% DEAFECTACIÓN A PERSONAL DE SALUD","5 puntos.\nMuerte (homicidio, suicidio) por afectación de la convivencia.  ",null,"8 puntos.\nSin coordinación",null,null,"15 puntos.\nNingún conocimiento sobre el evento y sus efectos"]
[null,"1 punto.\nPor debajo del nivel de referencia en mas del 25%","1 punto.\nPor debajo del nivel de referencia en mas del 25%"]

{"sheet":"MATRIZ DE PRIORIZACIÓN ","index":4,"n_rows":38,"n_cols":18,"rows_kept":38,"cut":false,"hidden":false,"merged":[[11,0,20,0],[21,0,26,0],[32,4,32,8],[11,1,14,1],[6,9,6,10],[4,3,6,7],[19,1,20,1],[17,1,18,1],[15,1,16,1],[21,1,22,1],[9,9,9,10],[8,0,9,2],[5,9,5,10],[0,10,1,10],[9,3,9,4],[8,3,8,10],[9,5,9,6],[9,7,9,8],[0,0,2,3],[0,4,2,6],[0,7,1,9],[2,7,2,9],[4,9,4,10]]}
[null,null,null,null,"PROCESO \nVIGILANCIA Y ANÁLISIS DEL \nRIESGO EN SALUD PÍBLICA",null,null,"MATRIZ DE PRIORIZACIÓN PARA EVENTOS DE INTERÉS EN SALUD PÚBLICA ",null,null,"Versión: 02"]
[]
[null,null,null,null,null,null,null,"FOR-R02.4220-004",null,null,"2021-08-13"]
[]
[null,null,null,"INSTITUTO NACIONAL DE SALUD\nMATRIZ DE PRIORIZACIÓN PARA EVENTOS DE INTERES EN SALUD PÚBLICA\nDirección de Analisis del Riesgo en Salud Pública",null,null,null,null,"PUNTAJE",{"$f":"R33","v":44}]
[null,null,null,null,null,null,null,null,"NIVEL DEL RIESGO",{"$f":"IF(J5<10,\"I\",IF(J5>100,\"IV\",IF(J5<50,\"II\",\"III\")))","v":"II"}]
[null,null,null,null,null,null,null,null,"RESPUESTA",{"$f":"IF(J5<10, \"Municipal\", IF(J5>100,\"Nacional Intersectorial Internacional\", IF(J5<50,\"Departamental\", \"Departamental Nacional\")))","v":"Departamental"}]
[]
["CRITERIOS",null,null,"PUNTAJE"]
[null,null,null,1,null,5,null,15,null,100]
[]
["AMENAZA",0]
[null,null,"Extensión geográfica",null,"Cualquiera de los siguientes:\n- Casos aislados en un solo municipio.\n- Casos notificados en una sola familia.\n- Casos en una sola Institución.",null,"Cualquiera de los siguientes:\n- Casos o evento diseminado en un municipio.\n - Casos en varias Instituciones de un mismo municipio.",null,"Cualquiera de los siguientes:\n- Casos o evento con extensión a varios municipios. \n- Casos o eventos notificados en dos o más regiones.",null,"Evento con extensión en varios países con alto trafico nacional o evento en paises limitrofes.",null,1,{"$f":"IF($M$13=1,1)","v":1},{"$f":"IF($M$13=2,5 )","v":false},{"$f":"IF($M$13=3,15)","v":false},{"$f":"IF($M$13=4,100)","v":false},{"$f":"SUM(N13:Q13)","v":1}]
[]
[null,null,"Características del evento",null,"Cualquiera de los siguientes:\n- Evento endémico conocido.\n- Evento en zona de seguridad.\n- Tasa de ataque baja < 1% del municipio.",null,"Cualquiera de los siguientes: \n- Evento epidémico conocido recurrente en el área. \n- Evento con aberración epidemica positiva o en zona de alerta. \n- Tasa de ataque moderada a alta 1 a 2 % del municipio.\n- Posibilidad de diseminación por cantidad de susceptibles.\n- Baja patogenicidad, virulencia y transmisibilidad.",null,"Cualquiera de los siguientes: \n- Evento emergente, re emergente o de etiología desconocida que no ha ocasionado muertes.\n- Evento con aberración positiva en brote.\n- Evento de interes en salud pública con muertes relacionadas.  \n- Tasa de ataque alta 2 a 5 % del municipio. \n- Evento de alta patogenicidad, virulencia y transmisibilidad. ",null,"Cualquiera de los siguientes: \n- Evento de etiología desconocida con muertes\n- Evento en alerta internacional,ESPII, evento en el marco de RSI con inminente ingreso al País. \n- Tasa de ataque muy elevada mas del 5 % del municipio. \n- Tasa de ataque en el área mayor del 50 %.",null,2,{"$f":"IF($M$15=1,1)","v":false},{"$f":"IF($M$15=2,5 )","v":5},{"$f":"IF($M$15=3,15)","v":false},{"$f":"IF($M$15=4,100)","v":false},{"$f":"SUM(N15:Q15)","v":5}]
[null,"Impacto sobre el SGSSS "]
[null,null,"Carga económica, disponibilidad y efectividad",null,"Cualquiera de los siguientes:\n- Número de casos que asisten a servicios es menor a lo usual. \n- Tratamiento disponible en los primeros niveles de atención",null,"Cualquiera de los siguientes:\n- El numero de casos que asisten a servicios de salud es igual a lo usual.\n- Tratamiento disponible en segundo nivel y tercer nivel.",null,"Cualquiera de los siguientes: \n- El numero de casos que asiste a servicios de salud es superior a los usual.\n- Evento que requiere de medicación controlada o en el marco de la Salud pública\n- Tratamiento en hospitales centrales y de IV nivel; no hay tratamiento especifico; los hospitales regionales no tienen capacidad",null,"Cualquiera de los siguientes: \n- Colapso de los servicios de salud. \n- Afectación de personal de salud. ",null,2,{"$f":"IF($M$17=1,1)","v":false},{"$f":"IF($M$17=2,5 )","v":5},{"$f":"IF($M$17=3,15)","v":false},{"$f":"IF($M$17=4,100)","v":false},{"$f":"SUM(N17:Q17)","v":5}]
[null,"Impacto social"]
[null,null,"Impacto turístico o comercial",null,"Cualquiera de los siguientes:\n- Zona afectada es rural y no es visitada por turistas. \n- El sistema económico no esta afectado.",null,"Cualquiera de los siguientes:\n- Zona afectada es un municipio no turístico y no es capital del departamento. \n- El evento no genera afectación de la convivencia social. ",null,"Cualquiera de los siguientes:\n- Zona afectada es un municipio turístico o con alta influencia económica. \n- Evento que genera afectación de la convivencia social. ",null,"Cualquiera de los siguientes:\n- Zona afectada es un departamento fronterizo internacional de alto movimiento. \n- Evento que genera alteración de convivencia local con  muertes relacionadas. ",null,3,{"$f":"IF($M$19=1,1)","v":false},{"$f":"IF($M$19=2,5 )","v":false},{"$f":"IF($M$19=3,15)","v":15},{"$f":"IF($M$19=4,100)","v":false},{"$f":"SUM(N19:Q19)","v":15}]
[null,"Acceso geográfico"]
[null,null,"Accesibilidad geográfica y características del área afectada",null,"Cualquiera de los siguientes:\n- Se puede acceder al área afectada en menos de 6 horas.\n- Población no indígena o no son grupos poblacionales especiales.",null,"Cualquiera de los siguientes:\n- Se puede acceder al área afectada entre 6 y 12 horas.\n- Población no indígena o no son grupos poblacionales especiales.",null,"Cualquiera de los siguientes:\n- Se puede acceder al área afectada entre 12 horas y 24 horas.\n- Población es indígena o son grupos poblacionales especiales. \n- Población afectada por calamidad natural o antrópica, sin afectación a la capacidad de respuesta. ",null,"Cualquiera de los siguientes:\n- Población afectada por una situación de desastre natura con compromiso de la capacidad de respuesta.\n- No se cuenta con capacidad para el ingreso al área. ",null,3,{"$f":"IF($M$21=1,1)","v":false},{"$f":"IF($M$21=2,5 )","v":false},{"$f":"IF($M$21=3,15)","v":15},{"$f":"IF($M$21=4,100)","v":false},{"$f":"SUM(N21:Q21)","v":15}]
["VULNERABILIDAD"," Perfiles, logística y recursos"]
[null,null,"Investigación epidemiológica de campo",null,"El municipio o nivel local cuenta con capacidad de respuesta: \n- Planes de preparación y respuesta a emergencias.\n- Disponibilidad de ERI municipal y profesionales con entrenamiento en investigación de campo. \n- Cuentan con insumos suficientes. ",null,"El municipio o nivel local no cuenta con capacidad de respuesta, pero el Departamento cuenta con capacidad de respuesta:\n- Planes de preparación y respuesta a emergencias.\n- Disponbibilidad de un ERI departamental y profesionales con entrenamiento en investigación de campo. \n- Cuentan con insumos suficientes. ",null,"El nivel departamental no cuenta con capacidad de respuesta, pero el nivel central cuenta con capacidad de respuesta:\n- Planes de preparación y respuesta a emergencias.\n- Disponibilidad de un ERI nacional con capacidad de despliegue.\n- Recursos limitados del nivel local y departamental. ",null,"El nivel central no tiene capacidad de respuesta, recursos limitados nacionales para la respuesta. \nSe requiere del apoyo del nivel internacional para las actividades de respuesta. ",null,1,{"$f":"IF($M$23=1,1)","v":1},{"$f":"IF($M$23=2,5 )","v":false},{"$f":"IF($M$23=3,15)","v":false},{"$f":"IF($M$23=4,100)","v":false},{"$f":"SUM(N23:Q23)","v":1}]
[]
[null,"Vigilancia epidemiológica","Capacidad de vigilancia epidemiológica ",null,"El municipio o nivel local no tiene retraso en la notificación y realiza el análisis de los datos, cuenta con responsable de la vigilancia para el evento. ",null,"El municipio o nivel local tiene retrasos en la notificación, pero el Departamento no tiene retrasos en la notificación, realiza el análisis de los datos y cuenta con responsable de la vigilancia para el evento. ",null,"El nivel Departamental tiene retrasos en la notificación o silencio epidemiologico, pero el nivel nacional realiza el análisis de los datos y cuenta con capacidad para la vigilancia de los eventos.  ",null,"Cualquiera de los siguientes:\n- El sistema de vigilancia no es capaz de identificar cambios inusuales o inusitados del comportamiento de los eventos de interés en salud pública.\n- Silencio epidemiológico persistente del nivel departamental.",null,1,{"$f":"IF($M$25=1,1)","v":1},{"$f":"IF($M$25=2,5 )","v":false},{"$f":"IF($M$25=3,15)","v":false},{"$f":"IF($M$25=4,100)","v":false},{"$f":"SUM(N25:Q25)","v":1}]
[]
[null,"Medios de comunicación","Difusión en medios de comunicación ",null,"La situación no esta en medios y el nivel locales cuenta con planes de manejo de medios y comunicación del riesgo.",null,"La situación aparece en medios locales o regionales, el nivel departamental tiene capacidad para la implementación del plan de manejo de medios y comunicación del riesgo. ",null,"La situación esta en medios nacionales, el nivel departamental no tiene capacidad para la implementación del manejo de medios. \nEl nivel nacional cuenta con capacidad para el manejo de medios y comunicación del riesgo. ",null,"Cualquiera de los siguientes:\n- El nivel nacional no tiene capacidad para el manejo de medios y comunicación del riesgo. \n- Solicitud explicita de apoyo de una autoridad departamental, nacional o internacional. ",null,1,{"$f":"IF($M$27=1,1)","v":1},{"$f":"IF($M$27=2,5 )","v":false},{"$f":"IF($M$27=3,15)","v":false},{"$f":"IF($M$27=4,100)","v":false},{"$f":"SUM(N27:Q27)","v":1}]
[]
["Aplicar adicional cuando se contemplen situaciones ambientales o brotes de IAAS, según corresponda","Brotes de IAAS","Difusión en medios de comunicación ",null,"Brotes de IAAS por microorganismos sensibles o una o dos familias de anitbióticos.\nBrote de IAAS con entidad territorial e institucional con capacidad de respuesta demostrada con envío de informes y adecuado abordaje. \nBrote de IAAS sin muertes relacionadas o atribuiblesal evento. ",null,"Cualquiera de los siguientes en entidad territorial sin capacidad de respuesta (no informes de brote, no manejo apropiado de brote establecido por equipo funcional):\n*Brotes en población de riesgo (inmunocomprometidos, edades extremas, UCI, comorbilidades como cáncer, pacientes con enfermedades crónicos) \n*Brote de IAAS con muertes relacionadas o atribuibles.\n*Brotes de IAAS por microorganismos multidrogoresistente\n*Brote que requiere articulación de diferentes áreas intersectoriales territoriales.\n*Solicitud de apoyo desde el nivel administrativo territorial. \n*No se evidencia articulación entre el area de vigilancia y el laboratorio departamental de salud pública.\n*La situación requiere de ampliación de información según requierimiento priorizado por el nivel nacional.\n*Brotes por microorganismos de interés en salud pública o con mecanismos de resistencia priorizados por el nivel nacional en entidades territoriales que han respondido a este evento en anteriores ocasiones y con capacidad de respuesta. \n*Brote de IAAS con afectación en varias instituciones con el mismo agente etiologico con entidad territorial sin capacidad de respuesta y control de la situación. ",null,"Entidad territorial con capacidad de respuesta (informes de brote que dan cuenta del correcto abordaje de la situación)\n*Brote de IAAS con afectación en varias instituciones con el mismo agente etiologico con entidad territorial con capacidad de respuesta y control de la situación, pero cuyo agente define un interes particular de seguimiento.  \n*Brote de IAAS con fuente (posible o confirmada) de infección en medicamentos, productos biologicos, soluciones o insumos de amplia distribución en diferentes entidades territoriales donde puede haber o no hay capacidad de respuesta o esta se ve súperada por la situación.\n*Brotes por microorganismos de interés en salud pública o con mecanismos de resistencia priorizados por el nivel nacional o de alertas internacionales en entidades territoriales como primer evento emergente o de acuerdo a criterios nacionales (ver criterios de envio aislamiento a laboratorio y/o alertas)\n*Brote de IAAS en que a pesar de medidas instauradas no se ha logrado lo control de la situación o que puede implicar el cierre de servicios en una entidad territorial sin capacidad de respuesta. ",null,"Cualquiera de los siguientes:\n* Alerta internacional emergente en el marco de RSI (bacterias multirresistentes o de dificil identificación por los métodos automatizados dispoinibles en las UPGD) \n* Brotes multicentricos que exceda un total de 40 casos (independiente de las instituciones involucradas).\n* Brotes que superen una letalidad del 5%.\n*Brotes que superen una tasa de ataque del 10%.",null,0,{"$f":"IF($M$29=1,1)","v":false},{"$f":"IF($M$29=2,5 )","v":false},{"$f":"IF($M$29=3,15)","v":false},{"$f":"IF($M$29=4,100)","v":false},{"$f":"SUM(N29:Q29)","v":0}]
[]
["Aplicar adicional cuando se contemplen situaciones ambientales o brotes de IAAS, según corresponda","Situaciones ambientales",null,null,"Cualquiera de las siguientes:\nEl agente es conocido y la situación se puede controlar en menos de 72 horas. \nSin afectación de lineas vitales (agua, suelo, aire)",null,"Cualquiera de las siguientes:\nEl agente es conocido y la situación requiere menos de 72 horas para controlarse. \nProbable aparición de eventos de interes en salud pública. \nAfectación en área rural.",null,"Cualquiera de las siguientes:\nEl agente es desconocido o conocido y la situación requiere más de 72 horas para controlarse. \nAfectación en corto plazo.\nAfectación de una linea vital y alto riesgo de aparición de eventos de interes en salud pública. \nAfectación urbana localizada.\nAfectación de animales de consumo.",null,"Cualquiera de las siguientes:\nEvento o fenomeno climatico extremo (p,e Huracán)\nAfectación de una o más lineas vitales y aparición de eventos de interes en salud pública secundarios. \nAfectación urbana extensa.",null,0,{"$f":"IF($M$31=1,1)","v":false},{"$f":"IF($M$31=2,5 )","v":false},{"$f":"IF($M$31=3,15)","v":false},{"$f":"IF($M$31=4,100)","v":false},{"$f":"SUM(N31:Q31)","v":0}]
[]
[null,null,null,null,"TABLA DE PUNTAJE",null,null,null,null,null,null,null,null,null,null,null,null,{"$f":"SUM(R11:R31)","v":44}]
[null,null,null,null,"Puntaje",null,"Nivel de riesgo",null,"Respuesta"]
[null,null,null,null,"<10",null,"I",null,"Municipal"]
[null,null,null,null,"11 a 50",null,"II",null,"Departamental"]
[null,null,null,null,"51 a 100",null,"III",null,"Departamental/ Nacional"]
[null,null,null,null,">101",null,"IV",null,"Nacional/ intersectorial. Internacional."]

{"sheet":"GENERAL","index":5,"n_rows":30,"n_cols":42,"rows_kept":30,"cut":false,"hidden":true,"merged":[[6,19,7,19],[6,38,7,38],[6,39,7,39],[6,40,7,40],[6,41,7,41],[6,20,7,20],[6,22,7,22],[6,23,6,26],[6,27,6,30],[6,31,6,34],[6,36,7,36],[6,9,7,9],[6,11,7,11],[6,13,7,13],[6,15,7,15],[6,17,7,17],[6,1,7,1],[6,2,7,2],[6,3,7,3],[6,5,7,5],[6,7,7,7],[0,0,0,41],[1,0,1,22],[1,23,1,38],[1,39,1,40],[1,41,5,41],[2,0,3,22],[2,23,5,34],[2,35,5,38],[2,39,5,40],[4,0,5,5],[4,6,4,15],[4,16,4,22],[5,6,5,9],[5,10,5,15],[5,16,5,22]]}
["MATRIZ DE PRIORIZACIÓN PARA EVENTOS DE INTERES EN SALUD PÚBLICA"]
["AMENAZA (50)",null,null,null,null,null,null,null,null,null,null,null,null,null,null,null,null,null,null,null,null,null,null,"VULNERABILIDAD (30)",null,null,null,null,null,null,null,null,null,null,null,null,null,null,null,"PERCEPCIÓN Y TOLERANCIA AL RIESGO (20)",null,"Riesgo "]
["Ocurrencia",null,null,null,null,null,null,null,null,null,null,null,null,null,null,null,null,null,null,null,null,null,null,"Nivel de preparación institucional (20)",null,null,null,null,null,null,null,null,null,null,null,"Efectividad control (10)",null,null,null,"Percepción de la comunidad (30)"]
[]
["Impacto humano (30)",null,null,null,null,null,"Impacto sobre el SGSS (15)",null,null,null,null,null,null,null,null,null,"Impacto social (5)"]
[null,null,null,null,null,null,"Carga económica (5)",null,null,null,"Afectación capacidad de respuesta (10)",null,null,null,null,null,"Afectación del desempeño (5)"]
[null,"Morbilidad (15)",null,"Muertes por evento (15)",null,"Necesidad de atención en nivel superior de complejidad (30)",null,"Costo atención medica (5)",null,"Costo incapacidad (1)",null,"Afectación de la infraestructura (3)",null,"Afectación del talento humano (2)",null,"Sobreutilización de los servicios (10)",null,"Escolar (20)",null,"Convivencia (5)","Laboral (40)",null,"Familiar (40)","Planificación (5)",null,null,null,"Coordinación de la respuesta (6)",null,null,null,"Ejecución de la respuesta (9)",null,null,null,null,"Prevención (50)",null,"Tratamiento y control (50)","Conocimiento (20)","Aceptabilidad (10)","Total "]
[null,null,null,null,null,null,null,null,null,null,null,null,null,null,null,null,null,null,null,null,null,null,null,null,"Planes de acción para emergencias (2) ",null,"Simulaciones y Simulacros (3)",null,"Sectorial (3)",null,"Intersectorial (3)",null,"Operaciones en terreno (5)",null,"Logística y recursos (4)"]
[100,null,70,null,30,null,null,null,null,null,null,null,null,null,null,null,null,null,null,null,null,null,null,null,null,null,null,null,null,null,null,null,null,null,null,null,null,null,null,null,null,{"$f":"SUM($AM9,$AK9,$AI9,$AG9,$AE9,$AC9,$AA9,$Y9,$W9,$U9,$R9,$P9,$N9,$L9,$J9,$H9,$F9,$D9,$B9+AN9+AO9+#REF!)","v":{"$error":"#REF!"}}]
[90,null,60,null,20,null,null,null,null,null,null,null,null,null,null,null,null,null,null,null,null,null,null,null,null,null,null,null,null,null,null,null,null,null,null,null,null,null,null,null,null,{"$f":"SUM($AM10,$AK10,$AI10,$AG10,$AE10,$AC10,$AA10,$Y10,$W10,$U10,$R10,$P10,$N10,$L10,$J10,$H10,$F10,$D10,$B10+AN10+AO10+#REF!)","v":{"$error":"#REF!"}}]
[80,null,50,null,10,null,3,null,null,null,5,null,5,null,5,null,2,null,2,null,null,2,null,null,null,3,null,3,null,3,null,6,null,6,null,15,null,10,null,null,null,{"$f":"SUM($AM11,$AK11,$AI11,$AG11,$AE11,$AC11,$AA11,$Y11,$W11,$U11,$R11,$P11,$N11,$L11,$J11,$H11,$F11,$D11,$B11+AN11+AO11+#REF!)","v":{"$error":"#REF!"}}]
[70,null,40,null,null,null,null,null,null,null,null,null,null,null,null,null,null,null,3,null,null,3,null,null,null,null,null,4,null,4,null,null,null,null,null,null,null,null,null,null,null,{"$f":"SUM($AM12,$AK12,$AI12,$AG12,$AE12,$AC12,$AA12,$Y12,$W12,$U12,$R12,$P12,$N12,$L12,$J12,$H12,$F12,$D12,$B12+AN12+AO12+#REF!)","v":{"$error":"#REF!"}}]
[60,null,30,null,null,null,null,null,null,null,null,null,null,null,null,null,null,null,4,null,null,4,null,null,null,null,null,null,null,null,null,null,null,null,null,null,null,null,null,null,null,{"$f":"SUM($AM13,$AK13,$AI13,$AG13,$AE13,$AC13,$AA13,$Y13,$W13,$U13,$R13,$P13,$N13,$L13,$J13,$H13,$F13,$D13,$B13+AN13+AO13+#REF!)","v":{"$error":"#REF!"}}]
[50,null,20,null,null,null,null,null,null,null,null,null,null,null,null,null,null,null,null,null,null,null,null,null,null,null,null,null,null,null,null,null,null,null,null,null,null,null,null,null,null,{"$f":"SUM($AM14,$AK14,$AI14,$AG14,$AE14,$AC14,$AA14,$Y14,$W14,$U14,$R14,$P14,$N14,$L14,$J14,$H14,$F14,$D14,$B14+AN14+AO14+#REF!)","v":{"$error":"#REF!"}}]
[40,null,10,null,null,null,null,null,null,null,null,null,null,null,null,null,null,null,null,null,null,null,null,null,null,null,null,null,null,null,null,null,null,null,null,null,null,null,null,null,null,{"$f":"SUM($AM15,$AK15,$AI15,$AG15,$AE15,$AC15,$AA15,$Y15,$W15,$U15,$R15,$P15,$N15,$L15,$J15,$H15,$F15,$D15,$B15+AN15+AO15+#REF!)","v":{"$error":"#REF!"}}]
[30,null,0,null,null,null,null,null,null,null,null,null,null,null,null,null,null,null,null,null,null,null,null,null,null,null,null,null,null,null,null,null,null,null,null,null,null,null,null,null,null,{"$f":"SUM($AM16,$AK16,$AI16,$AG16,$AE16,$AC16,$AA16,$Y16,$W16,$U16,$R16,$P16,$N16,$L16,$J16,$H16,$F16,$D16,$B16+AN16+AO16+#REF!)","v":{"$error":"#REF!"}}]
[20,null,null,null,null,null,null,null,null,null,null,null,null,null,null,null,null,null,null,null,null,null,null,null,null,null,null,null,null,null,null,null,null,null,null,null,null,null,null,null,null,{"$f":"SUM($AM17,$AK17,$AI17,$AG17,$AE17,$AC17,$AA17,$Y17,$W17,$U17,$R17,$P17,$N17,$L17,$J17,$H17,$F17,$D17,$B17+AN17+AO17+#REF!)","v":{"$error":"#REF!"}}]
[10,null,null,null,null,null,null,null,null,null,null,null,null,null,null,null,null,null,null,null,null,null,null,null,null,null,null,null,null,null,null,null,null,null,null,null,null,null,null,null,null,{"$f":"SUM($AM18,$AK18,$AI18,$AG18,$AE18,$AC18,$AA18,$Y18,$W18,$U18,$R18,$P18,$N18,$L18,$J18,$H18,$F18,$D18,$B18+AN18+AO18+#REF!)","v":{"$error":"#REF!"}}]
[0,null,null,null,null,null,null,null,null,null,null,null,null,null,null,null,null,null,null,null,null,null,null,null,null,null,null,null,null,null,null,null,null,null,null,null,null,null,null,null,null,{"$f":"SUM($AM19,$AK19,$AI19,$AG19,$AE19,$AC19,$AA19,$Y19,$W19,$U19,$R19,$P19,$N19,$L19,$J19,$H19,$F19,$D19,$B19+AN19+AO19+#REF!)","v":{"$error":"#REF!"}}]
[null,"10 puntos.\nSupera el nivel de referencia en más del 100 %",null,"10 puntos.\nSupera el nivel de referencia en más del 100 %",null,"1 punto.\nBaja complejidad",null,"1  punto.\nEl costo de la atención no supera el promedio de la UPC nacional y el numero de casos esta por debajo de la proporción nacional de morbilidad. ",null,"1  punto.\nLa incapacidad no supera los 3 días de duración",null,"1 punto.\nPoco o ningún daño a las instalaciones, sin pérdida de capacidad funcional",null,"1 punto.\nEl 25 % o menos del talento humano impedido para prestar servicios.",null,"1 punto. \nCapacidad habitual ",null,"0 puntos.\nSin afectación ",null,"1 punto. \nEl evento no genera afectación de la convivencia. ","0 puntos.\nSin afectación ",null,"0 puntos.\nSin afectación ",null,"1 punto.\nCon planes de preparación institucional",null,"1 punto.\nHa realizado uno o varios simulacros",null,"1 punto.\nEquipo sectorial responsable de la coordinación",null,"1 punto.\nEquipo intersectorial responsable de la coordinación",null,"1 punto.\nEquipo de respuesta inmediata con procedimientos",null,"1 punto.\n Con logística y con recursos disponibles",null,"5 puntos.\nIntervenciones con efectividad  y cobertura comprobadas",null,"1 punto. \nTratamiento disponibles y con efectividad comprobada","1 punto.\nConocimiento sobre el evento y sus efectos\n","1 punto.\nAceptabilidad al riesgo"]
[null,"9 puntos.\nSupera el nivel de referencia entre el 81 al 100 %.",null,"9 puntos.\nSupera el nivel de referencia entre el 81 al 100 %.",null,"2 puntos.\nMedia complejidad",null,"3 puntos.\nEl costo de la atención supera el promedio de UPC o el numero de casos supera la proporción nacional de morbilidad. ",null,"2 puntos.\nLa incapacidad supera los 3 días de duración ",null,"3 puntos.\nDaño moderado a las instalaciones, con perdida parcial de la capacidad funcional ",null,"3 puntos.\nHasta el 50 % del talento humano impedido para prestar servicios.",null,"5 puntos.\nIgual a la capacidad máxima",null,"1 punto.\nAusentismo escolar",null,"2 puntos.\nEl evento genera alteración de la convivencia, sin muerte.","1 punto.\nAusentismo de trabajadores  no compromete el funcionamiento. ",null,"1 punto.\nAusencia por enfermedad de algún integrante de la familia",null,"2 puntos.\nSin planes de preparación institucional",null,"2 puntos.\nHa realizado un o varias simulaciones, sin simulacros",null,"2 puntos. \nUn líder responsable de la coordinación sectorial",null,"2 puntos.\nUn líder responsable de la coordinación intersectorial",null,"3 puntos.\nSe cuenta con equipo o procedimiento",null,"3 puntos.\nSe cuenta con logística o con recursos",null,"10 puntos. Intervenciones que se suponen son efectivas y  las coberturas no son comprobadas",null,"5 puntos.\n Tratamiento con efectividad comprobada, pero no disponibles","10 puntos.\nConocimiento sobre el evento pero no sobre sus efectos","10 puntos.\nNo aceptabilidad al riesgo"]
[null,"8 puntos.\nSupera el nivel de referencia entre el 61 al 80 %.",null,"8 puntos.\nSupera el nivel de referencia entre el 61 al 80 %.",null,"3 puntos.\nAlta complejidad",null,"5 puntos.\nEl costo de la atención sobrepase la UPC promedio nacional y el numero de casos de la proporción nacional de morbilidad.",null,null,null,"5 puntos.\nDaño grave a las instalaciones, con perdida total de la capacidad",null,"5 puntos.\nMas del 50 % del talento humano impedido para prestar servicios.",null,"10 puntos.\nSupero la capacidad máxima Y/O MAS DEL 50% DEAFECTACIÓN A PERSONAL DE SALUD",null,"2 puntos.\nCierre temporal de las instituciones educativas",null,"5 puntos.\nMuerte (homicidio, suicidio) por afectación de la convivencia.  ","2 puntos.\nAusentismo de trabajadores compromete levemente funcionamiento. ",null,"2 Algún integrante enfermo que requiere asistencia de otro integrante ",null,null,null,"3 puntos.\nNo ha realizado ni simulación, ni simulacro",null,"3 puntos.\nUn proceso o procedimiento sectorial",null,"3 puntos.\nUn proceso o procedimiento intersectorial",null,"6 puntos.\nSin equipo y sin procedimiento",null,"6 puntos.\nNi logística, ni recursos disponibles",null,"15 puntos.\nNo hay intervenciones preventivas efectivas",null,"10 puntos.\nTratamiento sin efectividad","20 puntos.\nNingún conocimiento sobre el evento y sus efectos\n"]
[null,"7 puntos.\nSupera el nivel de referencia entre el 41 al 60 %.",null,"7 puntos.\nSupera el nivel de referencia entre el 41 al 60 %.",null,null,null,null,null,null,null,null,null,null,null,null,null,null,null,null,"3 puntos.\nAusentismo que compromete gravemente la operación ",null,"3 Varios integrantes enfermos que requieren atención familiar",null,null,null,null,null,"4 puntos.\nSin coordinación",null,"4 puntos.\nSin coordinación"]
[null,"6 puntos.\nSupera el nivel de referencia entre el 20 al 40 %.",null,"6 puntos.\nSupera el nivel de referencia entre el 20 al 40 %.",null,null,null,null,null,null,null,null,null,null,null,null,null,null,null,null,"4 puntos.\nCierre temporal de la institución",null,"4 Muerte de algún integrante de la familia"]
[null,"5 puntos.\n Iguala o supera el nivel de referencia hasta un 19 %.   ",null,"5 puntos.\n Iguala o supera el nivel de referencia hasta un 19 %.   "]
[null,"4 puntos.\nPor debajo del nivel de referencia hasta el 20 %.   ",null,"4 puntos.\nPor debajo del nivel de referencia hasta el 20 %.   "]
[null,"3 puntos.\nPor debajo del nivel de referencia entre un 21 a 40 %. ",null,"3 puntos.\nPor debajo del nivel de referencia entre un 21 a 40 %. "]
[null,"2 puntos.\nPor debajo del nivel de referencia entre el 41 a 60 %. ",null,"2 puntos.\nPor debajo del nivel de referencia entre el 41 a 60 %. "]
[null,"1 punto.\nPor debajo del nivel de referencia entre el 61 a 80 %. ",null,"1 punto.\nPor debajo del nivel de referencia entre el 61 a 80 %. "]
[null,"0 puntos.\nPor debajo del nivel de referencia en mas del 80 %. ",null,"0 puntos.\nPor debajo del nivel de referencia en mas del 80 %. "]